Cogmind - Beta 13 @@@ ROGUE MODE // 2024.04.08 @ 19:14:56 Player: mehbruh Result: Destroyed by D-53 Grenadier with Mini Grenade Launcher Performance ------------- Evolutions (0) 0 Regions Visited (2) 400 Robots Destroyed (23) 115 Value Destroyed (416) 416 Prototype IDs (0) 0 Alien Tech Used (0) 0 Bonus (0) 0 TOTAL SCORE: 931 Bonus ------- None Cogmind --------- Core Integrity 0/250 Matter 270/300 Energy 100/100 System Corruption 4% Temperature Cool (0) Movement Rolling (140) Ox4 Location -10/Mines Parts ------- > --- POWER (1) -------- (None) > --- PROPULSION (2) --- Wheel > --- UTILITY (2) ------ Heat Sink High-capacity Storage Unit > --- WEAPON (2) ------- Particle Gun Particle Gun > --- INVENTORY (20) --- Ion Engine Wheel Structural Scanner Improved Targeting Computer Improved Targeting Computer Light Armor Plating Light Armor Plating Hacking Suite Particle Gun Grenade Launcher Grenade Launcher Rocket Launcher Maul Peak State ------------ > --- POWER ------------ Ion Engine > --- PROPULSION ------- Wheel Wheel > --- UTILITY ---------- Heat Sink High-capacity Storage Unit > --- WEAPON ----------- Particle Gun Particle Gun > --- INVENTORY -------- Ion Engine Wheel Wheel Structural Scanner Improved Targeting Computer Improved Targeting Computer Light Armor Plating Light Armor Plating Hacking Suite Particle Gun Particle Gun Grenade Launcher Grenade Launcher Rocket Launcher Maul [Rating: 11] Favorites ----------- Power Ion Engine Engine Ion Engine Propulsion Light Treads Treads Light Treads Wheel Wheel Utility Large Storage Unit Device Heat Sink Storage Large Storage Unit Weapon Assault Rifle Energy Gun Medium Laser Ballistic Gun Assault Rifle Build | -11 -10 -10 ------- Run | Yrd Mat Min Slots Evolved . | . . . Power . | . . . Propulsion . | . . . Utility . | . . . Weapon . | . . . Parts Attached 17 | 6 8 3 Power 1 | 1 . . Engine 1 | 1 . . Core . | . . . Reactor . | . . . Propulsion 5 | 2 2 1 Treads 2 | 2 . . Leg . | . . . Wheel 3 | . 2 1 Hover . | . . . Flight . | . . . Utility 6 | 1 5 . Device 2 | . 2 . Storage 4 | 1 3 . Processor . | . . . Hackware . | . . . Protection . | . . . Artifact . | . . . Weapon 5 | 2 1 2 Energy Gun 4 | 1 1 2 Energy Cannon . | . . . Ballistic Gun 1 | 1 . . Ballistic Cannon . | . . . Launcher . | . . . Special Weapon . | . . . Impact Weapon . | . . . Slashing Weapon . | . . . Piercing Weapon . | . . . Special Melee Weapon . | . . . Unidentified Prototypes . | . . . Parts Lost 5 | . . 5 Power 1 | . . 1 Propulsion 2 | . . 2 Utility . | . . . Weapon 2 | . . 2 Highest Loss Streak 5 | . . 5 To Critical Strikes . | . . . Average Slot Usage (%) 94 | . 93 96 Engine 13 | . 14 12 Treads 19 | . 23 . Wheel 8 | . 3 26 Device 9 | . 8 14 Storage 14 | . 14 14 Energy Gun 14 | . 14 15 Ballistic Gun 13 | . 14 12 Naked Turns . | . . . Heaviest Build 52 | 14 51 52 Greatest Support 40 | 40 40 20 Greatest Overweight (x) 5 | 4 3 5 Average Overweight (x) . | 1 . 2 Largest Inventory Capacity 20 | 8 20 20 Average Capacity 15 | 7 15 20 Most Carried 16 | 3 15 16 Average Carried 10 | 1 10 15 Final Capacity 20 | 8 20 20 Final Carried 15 | 2 15 13 Class Distribution -------------------- 100% | Mutant Dominant Class ---------------- Mutant | -10/Materials Mutant | -10/Mines Resources | -11 -10 -10 ----------- Run | Yrd Mat Min Matter Collected 482 | 113 331 38 Remotely . | . . . Salvage Created 685 | . 664 21 Parts 52 | . 48 4 Haulers Intercepted 2 | . 2 . Recyclers Shooed 1 | . 1 . Parts Field Recycled . | . . . Retrieved Matter . | . . . Parts Self-Destructed . | . . . Prevented . | . . . Kills | -11 -10 -10 ------- Run | Yrd Mat Min Combat Hostiles Destroyed 14 | . 14 . Guns 14 | . 14 . Classes Destroyed 9 | . 8 1 Worker 1 | . 1 . Builder 1 | . 1 . Tunneler 1 | . . 1 Hauler 2 | . 2 . Recycler 1 | . 1 . Operator 2 | . 2 . Watcher 1 | . 1 . Swarmer 6 | . 6 . Grunt 8 | . 8 . Best Kill Streak 4 | . 4 1 Combat Bots Only 3 | . 3 . Max Kills in Single Turn 2 | . 2 1 Gunslinging . | . . . Exploded . | . . . Melee . | . . . Uniques/NPCs Destroyed . | . . . Combat | -11 -10 -10 -------- Run | Yrd Mat Min Hostile Shots Fired 63 | . 45 18 Missed 13 | . 12 1 Damage Taken 900 | . 324 576 Core 267 | . 49 218 Absorbed by Shields . | . . . Core Remaining (%) 100 | 100 . . Volleys Fired 52 | . 49 3 Largest 2 | . 2 2 Hottest 130 | . 85 130 Shots Fired 105 | . 99 6 Gun 105 | . 99 6 Cannon . | . . . Launcher . | . . . Special . | . . . Kinetic 51 | . 49 2 Thermal 54 | . 50 4 Explosive . | . . . Electromagnetic . | . . . Robot Hit Streak 17 | . 17 17 Robot Miss Streak 6 | . 6 2 Penetration Max . | . . . Secondary Targets . | . . . Shots Hit Robots 68 | . 66 2 Core Hits 34 | . 33 1 Critical Kills . | . . . Critical Parts Destroyed . | . . . Critical Strikes 4 | . 4 . Burn 4 | . 4 . Melee Attacks . | . . . Impact . | . . . Slashing . | . . . Piercing . | . . . Sneak Attacks . | . . . Combat Hostiles . | . . . Follow-up Attacks . | . . . Damage Inflicted 1006 | . 949 57 Guns 942 | . 912 30 Cannons . | . . . Explosions . | . . . Melee . | . . . Ramming 64 | . 37 27 Kinetic 479 | . 464 15 Thermal 463 | . 448 15 Explosive . | . . . Electromagnetic . | . . . Impact . | . . . Slashing . | . . . Piercing . | . . . Highest Corruption 4 | . 2 4 Average Corruption 2 | . 2 2 Corruption Purged . | . . . Corruption Blocked . | . . . Effects 25 | . 19 6 Message Errors 5 | . 3 2 Matter Fused 6 | . 3 3 Heat Flow Errors 2 | . 2 . Energy Discharges 5 | . 4 1 Parts Fused 2 | . 2 . Data Loss (minor) 3 | . 3 . Data Loss (major) 1 | . 1 . Misfires 1 | . 1 . Overload Shots . | . . . Overflow Damage . | . . . Projectiles . | . . . Explosions . | . . . Melee . | . . . Knockbacks . | . . . Impact . | . . . Kinetic . | . . . Secondary . | . . . Self-Inflicted Damage 15 | . 2 13 Shots . | . . . Rammed 9 | . 7 2 Targets Rammed 10 | . 8 2 Kicked . | . . . Crushed 1 | . 1 . Highest Temperature 267 | . 267 24 Average Temperature 39 | . 39 16 Received Heat Transfer 117 | . 117 . Siege Activations . | . . . Robots Corrupted . | . . . Combat Hostiles . | . . . Parts Fried . | . . . Impact Corruptions . | . . . Robots Melted . | . . . Combat Hostiles . | . . . Parts Melted 6 | . 6 . Heat Transferred 1628 | . 1591 37 Parts Sabotaged . | . . . Parts Stolen . | . . . Parts Stripped . | . . . Power Chain Reactions . | . . . Alert | -11 -10 -10 ------- Run | Yrd Mat Min Peak Influence 190 | . 190 33 Initial 28 | . . 28 Average 95 | . 116 25 Maximum Alert Level . | . . . Low Security (%) 100 | 100 100 100 Level 1 . | . . . Level 2 . | . . . Level 3 . | . . . Level 4 . | . . . Level 5 . | . . . High Security . | . . . Max Security . | . . . Squads Dispatched 3 | . 3 . Investigation 2 | . 2 . Extermination . | . . . Reinforcement 1 | . 1 . Assault . | . . . Garrison . | . . . Intercept . | . . . Searches Triggered . | . . . Construction Impeded . | . . . Haulers Reinforced . | . . . Active Scanning Responses . | . . . Cargo Convoy Interrupts . | . . . Stealth | -11 -10 -10 --------- Run | Yrd Mat Min Distress Signals . | . . . Communications Jammed . | . . . Distress Signals . | . . . Times Spotted 40 | . 32 8 Peak Tracking Total 7 | . 4 7 Tactical Retreats . | . . . Traps | -11 -10 -10 ------- Run | Yrd Mat Min Traps Triggered 3 | . 3 . Indirectly . | . . . Trap Hack Attempts . | . . . Triggered . | . . . Disarmed . | . . . Reprogrammed . | . . . Reused . | . . . Traps Extracted . | . . . Installed . | . . . Triggered . | . . . Machines | -11 -10 -10 ---------- Run | Yrd Mat Min Machines Disabled . | . . . Max in Single Turn . | . . . Machines Repaired . | . . . Machines Dismantled . | . . . Machines Sabotaged . | . . . Overloaded Fab Kills . | . . . Hacking | -11 -10 -10 --------- Run | Yrd Mat Min Machines Accessed 8 | . 8 . Terminals 7 | . 7 . Fabricators . | . . . Repair Stations 1 | . 1 . Recycling Units . | . . . Scanalyzers . | . . . Garrison Access . | . . . Total Hacks 26 | . 26 . Successful 14 | . 14 . Failed 11 | . 11 . Catastrophic . | . . . Database Lockouts 1 | . 1 . Manual 18 | . 18 . Terminals 22 | . 22 . Fabricators . | . . . Repair Stations 4 | . 4 . Recycling Units . | . . . Scanalyzers . | . . . Garrison Access . | . . . Terminal Hacks 6 | . 6 . Robot Analysis 4 | . 4 . Alert Level 1 | . 1 . Locate Traps 1 | . 1 . Fabricator Hacks . | . . . Repair Station Hacks 1 | . 1 . Scan Component 1 | . 1 . Recycling Unit Hacks . | . . . Scanalyzer . | . . . Garrison Access Hacks . | . . . Unauthorized Hacks 7 | . 7 . Terminals 7 | . 7 . Botnet 7 | . 7 . Fabricators . | . . . Repair Stations . | . . . Recycling Units . | . . . Scanalyzers . | . . . Garrison Access . | . . . Data Cores Recovered 1 | . 1 . Used . | . . . Hacking Detections 7 | . 7 . Full Trace Events 1 | . 1 . Feedback Events . | . . . Feedback Blocked . | . . . Robot Schematics Acquired . | . . . Robots Built . | . . . Authchips . | . . . Time . | . . . Total Robot Build Rating . | . . . Part Schematics Acquired . | . . . Parts Built . | . . . Authchips . | . . . Time . | . . . Total Part Build Rating . | . . . Parts Repaired . | . . . Time . | . . . Parts Recycled . | . . . Recycled Matter . | . . . Retrieved Matter . | . . . Retrieved Components . | . . . Parts Scanalyzed . | . . . Part Schematics Acquired . | . . . Parts Damaged . | . . . Bothacking | -11 -10 -10 ------------ Run | Yrd Mat Min Used RIF Installer . | . . . Robots Hacked . | . . . Non-combat . | . . . Combat . | . . . Robot Hacks Applied . | . . . Relay Couplers Released . | . . . Fabnet Peak Effective % . | . . . Robots Rewired . | . . . Allies Hacked . | . . . Hacks Repelled . | . . . Allies | -11 -10 -10 -------- Run | Yrd Mat Min Total Allies 3 | . . 3 Largest Group 3 | . . 3 Highest-Rated Group 40 | . . 40 Highest-Rated Ally 16 | . . 16 Total Orders . | . . . Ally Attacks 1 | . . 1 Total Damage 15 | . . 15 Kills . | . . . Allies Corrupted . | . . . Allies Melted . | . . . Intel | -11 -10 -10 ------- Run | Yrd Mat Min Robot Analysis Total 4 | . 4 . Derelict Logs Recovered 1 | . . 1 Drone Launches . | . . . Drone Recoveries . | . . . Exploration | -11 -10 -10 ------------- Run | Yrd Mat Min Turns Passed 1625 | 74 1268 283 Spaces Moved 989 | 36 714 239 Core 19 | 19 . . Treads 562 | 17 545 . Legs . | . . . Wheels 408 | . 169 239 Hover . | . . . Flight . | . . . Fastest Speed 50 | 50 95 110 Average Speed 140 | 175 148 112 Slowest Speed 250 | 250 240 155 Overloaded Moves . | . . . Propulsion Burnouts . | . . . Robots Hopped . | . . . Cave-ins Triggered . | . . . Exploration Rate (%) 51 | 5 99 49 Regions Visited 2 Branch Regions 1 Pre-discovered Areas 2 | . . 2 Known Exits Taken . | . . . Unknown Exits Taken 2 | 1 1 . Scrap Searched 1 | . . 1 Spaces Dug . | . . . Terrain Destroyed . | . . . Melee . | . . . Projectile . | . . . AOE . | . . . Terrain Rammed . | . . . Walls Destroyed . | . . . Machines Disabled . | . . . Actions | -11 -10 -10 --------- Run | Yrd Mat Min Total 1115 | 44 823 248 Wait 17 | . 17 . Move 987 | 35 713 239 Hop . | . . . Pick Up 22 | 3 18 1 Fast Attach 8 | 5 3 . Attach 6 | 1 2 3 Detach . | . . . Swap 3 | . 3 . Drop 10 | . 10 . Fire 52 | . 49 3 Melee . | . . . Ram 3 | . 1 2 Kick . | . . . Crush 7 | . 7 . Escape Stasis . | . . . Rewire . | . . . Trap . | . . . Miscellaneous . | . . . Route ------- -11/Scrapyard -10/Materials (discovered 4 exits: [*Mat x3] / [*Min]) -10/Mines (discovered 2 exits: [*Mat] / [*Exi]) History --------- Turn | Location | Event 30 | -11/Scrapyard | Discovered new exit (range 16) 75 | -11/Scrapyard | Entered Materials 82 | -10/Materials | Discovered new exit (range 16) 318 | -10/Materials | Build established: Mutant 460 | -10/Materials | Discovered new exit (range 15) 870 | -10/Materials | Discovered new exit (range 5) 995 | -10/Materials | Discovered new exit (range 15) 1047 | -10/Materials | Central database locked down 1343 | -10/Materials | Entered Mines 1417 | -10/Mines | Found a hidden stash of uninstalled traps 1438 | -10/Mines | Learned location of Storage (-9) 1520 | -10/Mines | Assisted by bots powering up and referring to "LRC-V3" 1525 | -10/Mines | Discovered new exit (range 8) 1531 | -10/Mines | Received a Rocket Launcher from a helpful Derelict 1553 | -10/Mines | Deemed a non-threat by the Exiles lab entrance 1554 | -10/Mines | Discovered new exit (range 5) 1585 | -10/Mines | Assembled infested the area 1604 | -10/Mines | Core integrity fell below 50% 1608 | -10/Mines | Core integrity fell below 20% 1617 | -10/Mines | Lost 3 allies 1626 | -10/Mines | Destroyed by D-53 Grenadier with Mini Grenade Launcher Last Messages --------------- as-80310 destroyed. Wheel destroyed. The unstable cave ceiling collapses. Ion Engine destroyed. Particle Gun destroyed. as-00317 destroyed. as-99636 destroyed. as-13904 destroyed. A-02 Transporter destroyed. as-23195 powers down. K-01 Serf collects debris. K-01 Serf destroyed. D-53 Grenadier destroyed. as-23195 destroyed. The unstable cave ceiling collapses. as-28905 destroyed. U-05 Engineer destroyed. The unstable cave ceiling collapses. Wheel destroyed. The unstable cave ceiling collapses. Map ----- +----------------------------------------------------+ | ?????????????????????????????????????? | | ?????????????????????????????????????? | | ?????????????????????????????????????? | | ???????????????????????????????? #??? | | ??????????????????????????????? ???? | | ??????????????????????????????? #???? | | ??????????????????????????????# #???? | | ??????????????????#????###???? ##??? | | ??????????????????? =??! #???# ##?? | | ???????????????????# ??# #??# ## | | ?????????????# ??## ### ### | | ????????????## ### ? | | ????????????# ??? | | ????????????# ! # ????? | | ?????????????# ! ###???? | | ????????????????# [ # #???? | | ????????????????##!! # # # ###?? | | ?????????????????### # ##? | | ??????????????????### # #? | | ??????????????????# #? | | ??????????????????# ##? | | ??????????????##### d #####?? | | ??????????????# ** #?????? | | ?????????????## # #?????? | | ???##???###### <% ## # #?????? | | ???#<#### @ #?## #?????? | | ???# ## #### ##??# #?????? | | ???### #?# ###???# ####### | | ?????### ##?# # #?????# | | ???????###??#### ####?????# ####### | | ???????????????######????????# #?????? | | ?????????????????????????????# #?????? | | ?????????????????????????????# #?????? | | ??#######???????????###??##### #?????? | | ??# #??????????## ####=!% !#?????? | | ??# #?????????## ########### | | ??# #?????????# ### ### | | ??# #????????## ##?# ## | | ??# """ ####????## ##?## ##### | | ??# """ #??###& #?## ##???# | | ??# """ ## #?##& & #### ##????# | | ??# ## #?# && ##?# ##?????# | | ??######## #?# #??# ####??????# | | ?????????# ### ##??## ##?????????# | | ?????????# ##????##???????????# | | ?????????##### ##????????????????## | | ???????????## ##???????????????# | | ?????####### ##??????????????# # | | ?????#=! #???????#####??# # | | ?????# ! #??????##% ##?# # | +----------------------------------------------------+ Best States ------------- Heat Dissipation 35 Energy Generation 10 Energy Capacity 250 Matter Stores 300 Matter Capacity 300 Sight Range 16 Terrain Scan Density 10 Evasion (%) 41 Recoil Reduction 2 Item Schematics ----------------- None Robot Schematics ------------------ None Fabricated ------------ Nothing Alien Tech Used ----------------- None Achievements -------------- None Challenges ------------ None Game ------ Seed FrostZioniteRigger Manual? 0 Play Time 00:15:31 Cumulative 29.8 hours Start 2024.04.08 @ 19:01:53 End 2024.04.08 @ 19:14:56 Sessions 1 Manual Loads 0 Difficulty Rogue Special Mode None Game No. 20 Rogue 20 Adventurer 0 Explorer 0 Win Type - Total 1 Types 1/0/0/0/0/0/0/0/0 Lore% 29 Gallery% 27 Achievement% 31 Wizard Run 0 Options --------- Layout 1 ASCII 0 Keyboard 0 Movement Arrows Keybinds 0 Fullscreen 1 Font 24/Smallcaps Map View 50x35 Zoom Use 0% Tactical HUD 0 Map Filters NONE Filters NONE Steam 1 RUN: 495dfe05-72d5-4209-aacd-fcd8499aaec9